bitfinex/quotes_ETHUSD_20250520
["timestamp","ask_amount","ask_price","bid_price","bid_amount"]
[1747753320419,4.05087904,2468.6,2468.5,17.481]
[1747753320622,4.05087904,2468.6,2468.5,25.507]
[1747753321098,4.05087904,2468.6,2468.5,40.519941]
[1747753321287,4.05087904,2468.6,2468.5,39.709047]
[1747753321482,4.0506148,2468.8,2468.5,41.99682788]
[1747753321686,4.05077413,2468.7,2468.6,13.175336]
[1747753322020,4.05087904,2468.6,2468.5,30.72776288]
[1747753322629,4.0507876,2468.7,2468.6,0.55]
[1747753322827,4.0507876,2468.7,2468.6,10.157609]
[1747753322985,4.0507876,2468.7,2468.6,14.05997188]
[1747753323191,4.0506743,2468.8,2468.6,13.28797188]
[1747753323418,4.0506743,2468.8,2468.7,16.074335]
[1747753324791,4.05047793,2468.9,2468.8,0.8313]
[1747753324986,4.05047793,2468.9,2468.8,25.87778099]
[1747753325861,4.05047793,2468.9,2468.8,26.264103]
[1747753326362,4.05047793,2468.9,2468.8,9.880854]
[1747753326538,4.05047793,2468.9,2468.8,26.089908]
[1747753326740,4.05047793,2468.9,2468.8,26.264103]
[1747753327673,4.05047793,2468.9,2468.8,26.219503]
[1747753328367,4.05047793,2468.9,2468.8,11.97709]
[1747753328552,4.05047793,2468.9,2468.8,25.98609]
[1747753328756,4.05047793,2468.9,2468.8,19.36609]
[1747753328934,4.05047793,2468.9,2468.8,0.38632201]
[1747753329453,4.05047793,2468.9,2468.8,8.32532201]
[1747753329655,4.05047793,2468.9,2468.8,7.939]
[1747753329831,4.05071495,2468.7,2468.6,0.7973]
[1747753330034,4.05071495,2468.7,2468.6,25.119549]
[1747753330267,4.05071495,2468.7,2468.6,16.71285988]
[1747753330669,4.05071495,2468.7,2468.6,12.63866288]
[1747753330833,4.05071495,2468.7,2468.6,16.39585788]
[1747753331354,4.05071495,2468.7,2468.6,14.89985788]
[1747753331949,4.05071495,2468.7,2468.6,15.44985788]
[1747753332536,4.04986204,2469.3,2468.7,0.55]
[1747753332740,4.0503057,2469.0,2468.9,0.55]
[1747753332941,4.0503057,2469.0,2468.9,16.933249]
[1747753333155,4.0503057,2469.0,2468.9,17.750749]
[1747753333880,0.7767,2469.8,2468.9,17.750749]
[1747753333881,0.8053,2470.0,2469.1,0.55]
[1747753334051,4.04940271,2469.5,2469.4,1.3271]
[1747753334377,4.04940271,2469.5,2469.4,34.481064]
[1747753334586,4.04940271,2469.5,2469.4,36.32609725]
[1747753334739,4.04923874,2469.6,2469.5,0.55]
[1747753334936,4.04923874,2469.6,2469.5,16.912832]
[1747753335157,4.04923874,2469.6,2469.5,17.67821741]
[1747753335358,4.04923874,2469.6,2469.5,14.009]
[1747753335792,4.04923874,2469.6,2469.5,23.611102]
[1747753335962,4.04923874,2469.6,2469.5,19.165595]
[1747753336164,4.04923874,2469.6,2469.5,14.009]
[1747753336363,4.04923874,2469.6,2469.5,16.226068]
[1747753336601,4.04923874,2469.6,2469.5,19.63572418]
[1747753336913,4.04940271,2469.5,2469.4,17.484]
[1747753337199,4.04940271,2469.5,2469.4,25.423]
[1747753339659,4.04940271,2469.5,2469.4,17.484]
[1747753339857,4.04940271,2469.5,2469.4,25.423]
[1747753344471,4.04940271,2469.5,2469.4,26.71105945]
[1747753344802,4.04825868,2470.2,2469.5,0.55]
[1747753345008,4.04923874,2469.6,2469.5,0.55]
[1747753345218,4.04923874,2469.6,2469.5,16.933249]
[1747753345574,4.04923874,2469.6,2469.5,5.278585]
[1747753345872,4.04923874,2469.6,2469.5,11.13796445]
[1747753346098,4.04923874,2469.6,2469.5,11.52487531]
[1747753346609,4.04923874,2469.6,2469.5,18.00549531]
[1747753346804,4.04923874,2469.6,2469.5,15.71247531]
[1747753347011,4.04923874,2469.6,2469.5,11.52487531]
[1747753347366,4.04923874,2469.6,2469.5,13.67247531]
[1747753347570,4.04923874,2469.6,2469.5,11.52487531]
[1747753347799,4.04923874,2469.6,2469.5,3.58587531]
[1747753348001,4.04923874,2469.6,2469.5,8.32491086]
[1747753348292,4.04923874,2469.6,2469.5,13.04241086]
[1747753348807,4.04923874,2469.6,2469.5,2.63741086]
[1747753348980,4.04923874,2469.6,2469.5,21.35001186]
[1747753349181,4.04923874,2469.6,2469.5,11.91791286]
[1747753349386,4.04923874,2469.6,2469.5,14.98691009]
[1747753350700,4.04923874,2469.6,2469.5,15.53691009]
[1747753351089,3.97404874,2469.8,2469.7,1.3194]
[1747753351296,4.04881335,2469.9,2469.8,0.55]
[1747753351494,4.04881335,2469.9,2469.8,8.89263]
[1747753351807,4.04881335,2469.9,2469.8,9.402347]
[1747753352006,4.04881335,2469.9,2469.8,8.285703]
[1747753353017,4.04881335,2469.9,2469.8,7.96518386]
[1747753353218,4.04881335,2469.9,2469.8,5.05718386]
[1747753353420,4.04881335,2469.9,2469.8,8.32491086]
[1747753354323,4.04881335,2469.9,2469.8,25.091849]
[1747753354525,4.04881335,2469.9,2469.8,25.641849]
[1747753356118,4.04881335,2469.9,2469.8,18.137083]
[1747753357023,4.04881335,2469.9,2469.8,18.52315553]
[1747753357318,4.04881335,2469.9,2469.8,20.37547108]
[1747753357522,4.04866301,2470.0,2469.9,0.55]
[1747753357719,4.04866301,2470.0,2469.9,16.933249]
[1747753357919,4.04866301,2470.0,2469.9,17.32783626]
[1747753358418,4.04737599,2470.8,2469.9,17.32783626]
[1747753358419,4.04846837,2470.1,2469.9,17.32783626]
[1747753358623,4.04828835,2470.2,2470.1,0.55]
[1747753358783,4.04828835,2470.2,2470.1,13.89873]
[1747753359185,4.04828835,2470.2,2470.1,12.675981]
[1747753359385,4.04828835,2470.2,2470.1,8.858837]
[1747753359826,4.04828835,2470.2,2470.1,3.203833]
[1747753360128,4.04828835,2470.2,2470.1,12.3985358]
[1747753360813,4.04828835,2470.2,2470.1,9.1947028]
[1747753361009,4.04828835,2470.2,2470.1,9.58077533]
[1747753361231,4.04828835,2470.2,2470.1,25.54460233]
[1747753361537,4.04828835,2470.2,2470.1,22.84460233]
[1747753362028,4.04802731,2470.4,2470.3,1.3602]
[1747753362191,4.04776361,2470.5,2470.4,0.55]
[1747753362396,4.04776361,2470.5,2470.4,16.933249]
[1747753363946,4.04764537,2470.6,2470.4,16.933249]
[1747753364146,4.04764537,2470.6,2470.5,16.933249]
[1747753364446,4.04764537,2470.6,2470.5,20.79084918]
[1747753365871,4.04738084,2470.8,2470.7,1.3107]
[1747753366039,4.04738084,2470.8,2470.7,25.625949]
[1747753367174,4.04720755,2470.9,2470.8,0.55]
[1747753367377,4.04720755,2470.9,2470.8,19.4958439]
[1747753368534,4.04720755,2470.9,2470.8,33.4938439]
[1747753370038,4.04720755,2470.9,2470.8,18.0636359]
[1747753370259,4.04720755,2470.9,2470.8,22.650069]
[1747753371151,4.04720755,2470.9,2470.8,23.200069]
[1747753372454,4.04720755,2470.9,2470.8,23.959869]
[1747753373594,4.04720755,2470.9,2470.8,24.34540594]
[1747753376507,0.8148,2471.7,2470.9,0.55]
[1747753376808,4.04689422,2471.1,2471.0,2.98454059]
[1747753377013,4.04689422,2471.1,2471.0,16.933249]
[1747753377303,4.04689422,2471.1,2471.0,17.720549]
[1747753377920,4.04689422,2471.1,2471.0,18.10608594]
[1747753378920,4.04689422,2471.1,2471.0,30.77049194]
[1747753379327,4.04689422,2471.1,2471.0,15.71683694]
[1747753379521,4.04689422,2471.1,2471.0,33.67176963]
[1747753380021,4.04689422,2471.1,2471.0,13.56441863]
[1747753380207,4.04689422,2471.1,2471.0,8.31453694]
[1747753381086,4.04689422,2471.1,2471.0,7.929]
[1747753381292,4.04743594,2470.7,2470.6,0.7765]
[1747753381492,4.04743594,2470.7,2470.6,31.153749]
[1747753381692,4.04743594,2470.7,2470.6,33.92658446]
[1747753382225,4.04743594,2470.7,2470.6,34.8625603]
[1747753383030,4.04743594,2470.7,2470.6,8.31497584]
[1747753383492,4.87473594,2470.7,2470.6,8.31497584]
[1747753383693,4.04743594,2470.7,2470.6,8.31497584]
[1747753384126,4.04743594,2470.7,2470.6,11.38233]
[1747753384504,4.04743594,2470.7,2470.6,7.929]
[1747753385318,4.04743594,2470.7,2470.6,14.5601]
[1747753385524,4.04743594,2470.7,2470.6,13.0621]
[1747753386407,4.04727597,2470.8,2470.6,13.6121]
[1747753386608,4.04727597,2470.8,2470.7,17.201849]
[1747753387018,4.04710834,2470.9,2470.8,0.55]
[1747753387358,4.04743594,2470.7,2470.6,0.7929]
[1747753387499,4.04743594,2470.7,2470.6,11.036596]
[1747753388805,4.04743594,2470.7,2470.6,11.586596]
[1747753389207,4.04743594,2470.7,2470.6,6.81245783]
[1747753389436,4.04743594,2470.7,2470.6,11.50445783]
[1747753389620,4.04743594,2470.7,2470.6,8.31176183]
[1747753389821,4.04743594,2470.7,2470.6,14.14634883]
[1747753390151,4.04743594,2470.7,2470.6,15.63222555]
[1747753391126,4.04743594,2470.7,2470.6,12.65186183]
[1747753391456,4.04743594,2470.7,2470.6,8.31176183]
[1747753392107,4.04743594,2470.7,2470.6,17.69244183]
[1747753392421,4.04743594,2470.7,2470.6,18.01184183]
[1747753392824,4.04611017,2471.6,2470.6,18.01184183]
[1747753392825,4.0471831,2470.9,2470.7,0.55]
[1747753393040,4.04694455,2471.0,2470.9,0.55]
[1747753393535,4.04694455,2471.0,2470.9,0.56]
[1747753393730,4.04694455,2471.0,2470.9,12.810021]
[1747753394061,4.04681683,2471.1,2471.0,0.8052]
[1747753394062,4.04686495,2471.1,2471.0,0.8052]
[1747753394209,4.04686495,2471.1,2471.0,17.738449]
[1747753394409,4.04686495,2471.1,2471.0,19.78578904]
[1747753394615,4.04686495,2471.1,2471.0,19.79578904]
[1747753395370,4.04686495,2471.1,2471.0,20.18255087]
[1747753395866,4.81238264,2471.7,2471.1,0.55]
[1747753396168,4.04621752,2471.5,2471.3,0.55]
[1747753396466,4.04621752,2471.5,2471.4,14.87099088]
[1747753396668,4.04621752,2471.5,2471.4,13.39515071]
[1747753396859,4.04621752,2471.5,2471.4,7.95890871]
[1747753397372,0.8056,2472.1,2471.5,0.55]
[1747753397582,4.04443766,2472.6,2471.7,1.371]
[1747753397583,4.04505098,2472.2,2471.7,1.371]
[1747753397782,4.04547109,2471.9,2471.8,24.857249]
[1747753397989,4.04547109,2471.9,2471.8,8.474]
[1747753398464,4.04579843,2471.7,2471.6,1.88289628]
[1747753398668,4.04579843,2471.7,2471.6,21.27175028]
[1747753399838,4.04579843,2471.7,2471.6,21.58159117]
[1747753400402,4.04579843,2471.7,2471.6,20.79861917]
[1747753400578,4.04579843,2471.7,2471.6,15.96742517]
[1747753401121,4.04579843,2471.7,2471.6,8.04342517]
[1747753401328,4.04579843,2471.7,2471.6,15.1155343]
[1747753401633,4.04579843,2471.7,2471.6,8.30924579]
[1747753402914,4.04579843,2471.7,2471.6,7.923]
[1747753404216,4.04628955,2471.4,2471.3,0.01]
[1747753404389,4.04628955,2471.4,2471.3,13.604031]
[1747753404810,4.04628955,2471.4,2471.3,17.8677341]
[1747753405680,4.04628955,2471.4,2471.3,17.8577341]
[1747753406217,4.04628955,2471.4,2471.3,18.25359851]
[1747753406419,4.04628955,2471.4,2471.3,18.66221465]
[1747753409316,4.04628955,2471.4,2471.3,18.65221465]
[1747753409493,4.04628955,2471.4,2471.3,12.98118365]
[1747753409693,4.04606203,2471.6,2471.4,0.55]
[1747753409907,4.04606203,2471.6,2471.5,19.92040647]
[1747753411088,4.04606203,2471.6,2471.5,20.30627088]
[1747753411290,4.04525645,2472.1,2471.6,0.55]
[1747753411484,4.04579843,2471.7,2471.6,0.55]
[1747753411699,4.04570061,2471.8,2471.6,17.32555119]
[1747753411902,4.04570061,2471.8,2471.7,16.933249]
[1747753413415,4.04534161,2472.0,2471.9,0.55]
[1747753413641,4.04534161,2472.0,2471.9,24.855249]
[1747753413841,4.04534161,2472.0,2471.9,21.978314]
[1747753414043,4.04534161,2472.0,2471.9,24.2575954]
[1747753417013,4.04534161,2472.0,2471.9,24.64345981]
[1747753418509,4.04534161,2472.0,2471.9,24.36563481]
[1747753419875,4.04534161,2472.0,2471.9,13.71562981]
[1747753420055,4.04534161,2472.0,2471.9,13.24080841]
[1747753420234,4.04534161,2472.0,2471.9,13.24355341]
[1747753420572,4.04534161,2472.0,2471.9,11.50355341]
[1747753420769,4.04534161,2472.0,2471.9,11.18523741]
[1747753422130,4.04534161,2472.0,2471.9,8.30186441]
[1747753422769,4.04534161,2472.0,2471.9,0.38586441]
[1747753423072,4.04534161,2472.0,2471.9,8.30186441]
[1747753423370,4.04534161,2472.0,2471.9,15.25741141]
[1747753423730,4.04534161,2472.0,2471.9,12.34457241]
[1747753423934,4.04534161,2472.0,2471.9,8.30186441]
[1747753424175,4.04534161,2472.0,2471.9,2.76841441]
[1747753424354,4.04534161,2472.0,2471.9,10.68341441]
[1747753425416,4.04534161,2472.0,2471.9,10.69155241]
[1747753425865,4.04534161,2472.0,2471.9,2.77655241]
[1747753426034,4.04534161,2472.0,2471.9,10.62235641]
[1747753426436,4.04534161,2472.0,2471.9,8.30086441]
[1747753428061,4.04534161,2472.0,2471.9,7.915]
[1747753430572,4.04534161,2472.0,2471.9,8.30201591]
[1747753433697,4.04534161,2472.0,2471.9,25.76401591]
[1747753435995,4.04534161,2472.0,2471.9,17.84901591]
[1747753436289,4.82734161,2472.0,2471.9,25.76501591]
[1747753437783,4.82734161,2472.0,2471.9,25.378]
[1747753449469,4.82734161,2472.0,2471.9,25.369]
[1747753450396,4.82734161,2472.0,2471.9,17.462]
[1747753450569,4.82734161,2472.0,2471.9,25.369]
[1747753450771,14.93734161,2472.0,2471.9,7.907]
[1747753453610,15.48734161,2472.0,2471.9,7.907]
[1747753453907,15.89724628,2472.0,2471.9,7.907]
[1747753454115,4.80405328,2471.3,2471.2,17.464]
[1747753454298,4.80405328,2471.3,2471.2,25.372]
[1747753455003,7.01181457,2471.3,2471.2,25.372]
[1747753455619,4.04809132,2470.3,2470.2,0.48200541]
[1747753455910,4.04809132,2470.3,2470.2,26.11269481]
[1747753456307,4.04563542,2470.3,2470.2,25.6306894]
[1747753461182,4.04563542,2470.3,2470.2,42.7463864]
[1747753461385,4.04563542,2470.3,2470.2,31.8231454]
[1747753461581,4.04563542,2470.3,2470.2,29.3272554]
[1747753462319,4.04563542,2470.3,2470.2,26.3857894]
[1747753462687,4.04563542,2470.3,2470.2,29.4464894]
[1747753463187,4.04563542,2470.3,2470.2,26.3857894]
[1747753463521,4.04563542,2470.3,2470.2,29.5964894]
[1747753463720,4.04563542,2470.3,2470.2,26.3857894]
[1747753464244,4.04563542,2470.3,2470.2,30.0762894]
[1747753464426,4.04563542,2470.3,2470.2,25.6306894]
[1747753464791,4.04563542,2470.3,2470.2,28.2712894]
[1747753465493,4.04563542,2470.3,2470.2,28.2920174]
[1747753466727,4.04563542,2470.3,2470.2,28.0616404]
[1747753467823,4.04563542,2470.3,2470.2,29.3741404]
[1747753468925,4.04801941,2470.4,2470.3,1.3693]
[1747753469119,4.04801941,2470.4,2470.3,13.95866204]
[1747753469430,4.04801941,2470.4,2470.3,12.51442704]
[1747753471140,4.04801941,2470.4,2470.3,12.8998178]
[1747753472013,4.04801941,2470.4,2470.3,4.1477848]
[1747753472241,4.04801941,2470.4,2470.3,9.11569076]
[1747753472717,4.04801941,2470.4,2470.3,8.29639076]
[1747753472899,4.04801941,2470.4,2470.3,12.59070276]
[1747753473100,4.04801941,2470.4,2470.3,12.205312]
[1747753473946,4.04801941,2470.4,2470.3,4.294312]
[1747753474107,4.04809132,2470.3,2470.2,17.7226894]
[1747753474311,4.04809132,2470.3,2470.2,25.6336894]
[1747753474638,4.04809132,2470.3,2470.2,17.7226894]
[1747753474833,4.04809132,2470.3,2470.2,28.5259384]
[1747753475140,4.04809132,2470.3,2470.2,28.8119984]
[1747753475342,4.04809132,2470.3,2470.2,25.6336894]
[1747753475554,4.04809132,2470.3,2470.2,31.8519984]
[1747753475960,4.04809132,2470.3,2470.2,25.6336894]
[1747753476159,4.04809132,2470.3,2470.2,28.8119984]
[1747753477759,4.04809132,2470.3,2470.2,29.19847704]
[1747753477961,4.04809132,2470.3,2470.2,26.02016804]
[1747753478256,4.04809132,2470.3,2470.2,29.14726704]
[1747753478962,4.04800339,2470.4,2470.3,0.55]
[1747753479271,4.04800339,2470.4,2470.3,12.9083457]
[1747753480032,4.04800339,2470.4,2470.3,7.2886867]
[1747753480228,4.04800339,2470.4,2470.2,18.87206804]
[1747753480229,4.80639132,2470.3,2470.2,17.85247864]
[1747753480433,4.80639132,2470.3,2470.2,25.75247864]
[1747753480834,4.80639132,2470.3,2470.2,25.366]
[1747753481769,4.80639132,2470.3,2470.2,17.466]
[1747753481966,4.80639132,2470.3,2470.2,25.366]
[1747753483670,4.80639132,2470.3,2470.2,17.466]
[1747753483974,4.80639132,2470.3,2470.2,25.366]
[1747753486292,4.80639132,2470.3,2470.2,17.466]
[1747753486293,4.04809132,2470.3,2470.2,17.466]
[1747753486589,4.80729132,2470.3,2470.2,25.367]
[1747753488592,4.80729132,2470.3,2470.2,17.466]
[1747753489217,4.8290552,2470.2,2470.1,7.901]
[1747753489508,7.03681649,2470.2,2470.1,7.901]
[1747753490869,4.87273874,2469.6,2469.5,17.476]
[1747753491103,4.87273874,2469.6,2469.5,25.378]
[1747753491875,4.04923874,2469.6,2469.5,25.378]
[1747753501536,4.81973874,2469.6,2469.5,17.476]
[1747753501721,4.81973874,2469.6,2469.5,25.379]
[1747753502736,4.04923874,2469.6,2469.5,25.379]
[1747753502912,4.04923874,2469.6,2469.5,27.9169]
[1747753503118,4.04923874,2469.6,2469.5,25.379]
[1747753504611,4.04923874,2469.6,2469.5,39.245405]
[1747753504810,4.04923874,2469.6,2469.5,29.278671]
[1747753505138,4.04923874,2469.6,2469.5,26.1341]
[1747753505325,4.04923874,2469.6,2469.5,25.379]
[1747753505742,4.04923874,2469.6,2469.5,28.78447]
[1747753505922,4.04923874,2469.6,2469.5,45.167719]
[1747753506104,4.04923874,2469.6,2469.5,40.55442]
[1747753506712,4.04923874,2469.6,2469.5,38.28052]
[1747753507429,4.04793585,2470.4,2469.5,37.49182]
[1747753507641,4.04906872,2469.8,2469.6,3.749182]
[1747753507831,4.04906872,2469.8,2469.7,16.383249]
[1747753508028,4.04867207,2470.0,2469.8,0.8006]
[1747753508337,4.04811814,2470.3,2470.0,0.7586]
[1747753508644,4.04832943,2470.2,2470.1,31.102849]
[1747753508843,4.04832943,2470.2,2470.1,17.8298849]
[1747753509150,4.04811814,2470.3,2470.2,17.141849]
[1747753509660,4.04783754,2470.5,2470.3,0.771]
[1747753509822,4.04641258,2471.4,2470.5,0.771]
[1747753510142,4.04742356,2470.8,2470.6,7.891]
[1747753510321,4.04743594,2470.7,2470.6,8.27730186]
[1747753510517,4.04743594,2470.7,2470.6,10.85293205]
[1747753510737,4.04743594,2470.7,2470.6,11.62393205]
[1747753510938,4.04743594,2470.7,2470.6,28.00718105]
[1747753511747,4.04734481,2470.8,2470.7,0.7659]
[1747753511924,4.04641413,2471.4,2470.7,17.149149]
[1747753512120,4.04562999,2471.9,2470.9,0.7659]
[1747753512121,4.0462201,2471.5,2470.9,0.7659]
[1747753512338,4.04694455,2471.0,2470.9,0.7659]
[1747753512626,4.04587272,2471.7,2471.0,0.7785]
[1747753512828,4.04667091,2471.2,2471.1,7.891]
[1747753513020,4.04667091,2471.2,2471.1,24.274249]
[1747753513243,4.04678078,2471.1,2471.0,0.7785]
[1747753513548,4.04678078,2471.1,2471.0,8.6685]
[1747753513738,4.04678078,2471.1,2471.0,13.5474]
[1747753513912,4.04678078,2471.1,2471.0,8.6685]
[1747753514643,4.04678078,2471.1,2471.0,14.3813]
[1747753514851,4.04678078,2471.1,2471.0,11.7463]
[1747753515638,4.04678078,2471.1,2471.0,8.6685]
[1747753516750,4.04678078,2471.1,2471.0,10.09491908]
[1747753517119,4.04678078,2471.1,2471.0,2.20491908]
[1747753517318,0.7854,2471.1,2470.1,0.40474494]
[1747753517542,4.04809132,2470.3,2470.2,25.361]
[1747753517753,4.04809132,2470.3,2470.2,42.529349]
[1747753518155,4.04809132,2470.3,2470.2,29.192649]
[1747753518460,4.04809132,2470.3,2470.2,32.42981944]
[1747753518616,4.04694455,2471.0,2470.2,32.42981944]
[1747753518954,4.04799407,2470.4,2470.2,29.72016544]
[1747753519255,4.04694455,2471.0,2470.3,12.125097]
[1747753519566,4.04799342,2470.4,2470.2,29.72016544]
[1747753519735,4.04799342,2470.4,2470.3,14.613856]
[1747753519934,4.04799342,2470.4,2470.3,13.197856]
[1747753520337,4.04774108,2470.6,2470.4,0.7971]
[1747753520518,4.04774108,2470.6,2470.5,16.383249]
[1747753520719,4.04661702,2471.2,2470.6,0.7971]
[1747753520924,4.04727213,2470.8,2470.7,7.889]
[1747753521228,4.04727213,2470.8,2470.7,24.272249]
[1747753521441,4.04727213,2470.8,2470.7,12.271956]
[1747753521740,4.04727213,2470.8,2470.7,13.75066509]
[1747753522988,4.04727213,2470.8,2470.7,12.271956]
[1747753523149,4.04727213,2470.8,2470.7,7.889]
[1747753524661,4.04776361,2470.5,2470.4,0.8082]
[1747753525163,4.04776361,2470.5,2470.4,10.988517]
[1747753525878,4.04776361,2470.5,2470.4,10.180317]
[1747753531251,4.85586361,2470.5,2470.4,10.180317]
[1747753531460,4.85586361,2470.5,2470.4,2.292317]
[1747753531659,4.85586361,2470.5,2470.4,10.181317]
[1747753531905,4.85586361,2470.5,2470.4,7.889]
[1747753532081,4.85586361,2470.5,2470.4,10.181317]
[1747753533180,4.85586361,2470.5,2470.4,7.889]
[1747753533550,4.04874691,2469.9,2469.8,7.889]
[1747753533747,4.85844691,2469.9,2469.8,7.889]
[1747753534191,9.10025696,2469.9,2469.8,7.889]
[1747753535284,4.85844691,2469.9,2469.8,7.889]
[1747753538100,4.81216669,2469.4,2469.3,7.891]
[1747753538300,4.05055087,2468.8,2468.7,17.477]
[1747753538504,4.05055087,2468.8,2468.7,25.368]
[1747753539772,4.05055087,2468.8,2468.7,17.477]
[1747753539971,4.05055087,2468.8,2468.7,25.358]
[1747753541702,4.05055087,2468.8,2468.7,25.359]
[1747753543606,4.05055087,2468.8,2468.7,17.477]
[1747753543902,4.83645087,2468.8,2468.7,25.361]
[1747753544270,4.85251495,2468.7,2468.6,0.00521907]
[1747753544804,14.96251495,2468.7,2468.6,0.00521907]
[1747753546296,4.05317769,2467.2,2467.1,17.486]
[1747753546619,4.05317769,2467.2,2467.1,25.371]
[1747753547479,4.05317769,2467.2,2467.1,17.486]
[1747753547684,4.05317769,2467.2,2467.1,27.1196]
[1747753547884,4.05317769,2467.2,2467.1,40.264153]
[1747753548081,4.05145113,2468.3,2467.2,0.8131]
[1747753548286,4.85257972,2468.5,2467.3,0.85891759]
[1747753548287,4.05107972,2468.5,2467.3,0.85891759]
[1747753548496,4.05278048,2467.5,2467.3,0.8184]
[1747753548736,4.05107972,2468.5,2467.5,0.8184]
[1747753548886,4.05231955,2467.8,2467.7,0.8184]
[1747753549092,4.05231955,2467.8,2467.7,19.955413]
[1747753549403,4.05231955,2467.8,2467.7,16.947206]
[1747753549719,4.05231955,2467.8,2467.7,16.231034]
[1747753551165,4.05149977,2468.3,2467.7,16.231034]
[1747753551360,4.05164144,2468.2,2467.9,0.7996]
[1747753551548,4.05164144,2468.2,2467.8,1.75860921]
[1747753551549,4.0515319,2468.3,2468.1,0.7967]
[1747753551723,4.0515319,2468.3,2468.2,24.269249]
[1747753551923,4.0515319,2468.3,2468.2,23.921005]
[1747753552225,4.04973911,2469.3,2468.3,0.55]
[1747753552521,4.05104314,2468.5,2468.4,9.1883]
[1747753552727,4.05104314,2468.5,2468.4,8.6383]
[1747753552923,4.05104314,2468.5,2468.4,18.425994]
[1747753553140,4.05104314,2468.5,2468.4,18.387536]
[1747753553341,4.05104314,2468.5,2468.4,19.72372589]
[1747753553543,4.05104314,2468.5,2468.4,11.47448989]
[1747753553737,4.05104314,2468.5,2468.4,8.6383]
[1747753553941,4.05104314,2468.5,2468.4,7.886]
[1747753557864,4.05169968,2468.1,2468.0,18.3051]
[1747753558047,4.05169968,2468.1,2468.0,33.4735]
[1747753558247,4.05169968,2468.1,2468.0,29.0715]
[1747753558753,4.05169968,2468.1,2468.0,32.15451092]
[1747753559786,4.05169968,2468.1,2468.0,32.70451092]
[1747753562156,4.05169968,2468.1,2468.0,32.15451092]
[1747753562993,4.05169968,2468.1,2468.0,32.70451092]
[1747753563360,4.051229,2468.4,2468.3,0.55]
[1747753563564,4.04951672,2469.5,2468.6,0.7664]
[1747753563869,4.05051568,2468.9,2468.8,1.3164]
[1747753564094,4.05051568,2468.9,2468.8,43.993889]
[1747753564295,4.05038681,2468.9,2468.8,43.993889]
[1747753564495,4.05038681,2468.9,2468.8,22.365799]
[1747753564696,4.05038681,2468.9,2468.8,29.453949]
[1747753564998,4.05038681,2468.9,2468.8,29.8400504]
[1747753565197,4.05038681,2468.9,2468.8,21.9540504]
[1747753565355,4.05038681,2468.9,2468.8,29.8400504]
[1747753566292,4.05038681,2468.9,2468.8,29.453949]
[1747753566706,4.05038681,2468.9,2468.8,20.801549]
[1747753566878,4.05038681,2468.9,2468.8,25.374]
[1747753567275,4.05038681,2468.9,2468.8,25.373]
[1747753568200,4.04897568,2469.8,2468.9,0.776]
[1747753568392,0.7964,2470.3,2469.3,3.23971934]
[1747753568607,4.0479942,2470.4,2469.5,0.7727]
[1747753568803,4.04887296,2469.9,2469.6,0.59048294]
[1747753569097,4.04851784,2470.1,2469.9,0.7727]
[1747753569399,4.04858299,2470.0,2469.9,1.3227]
[1747753569613,4.04858299,2470.0,2469.9,11.68767]
[1747753569815,4.04858299,2470.0,2469.9,11.57806]
[1747753570103,4.04858299,2470.0,2469.9,0.7727]
[1747753570304,4.04858299,2470.0,2469.9,8.6477]
[1747753571386,4.04858299,2470.0,2469.9,7.875]
[1747753571905,4.04891084,2469.8,2469.7,17.486]
[1747753572104,4.04891084,2469.8,2469.7,30.604908]
[1747753572310,4.04891084,2469.8,2469.7,25.96649657]
[1747753572604,4.04891084,2469.8,2469.7,33.84149657]
[1747753573007,4.04891084,2469.8,2469.7,19.5179]
[1747753573225,4.04891084,2469.8,2469.7,27.4349]
[1747753573509,4.04891084,2469.8,2469.7,30.0516]
[1747753574113,4.04793781,2470.4,2469.8,0.55]
[1747753574314,4.04793781,2470.4,2469.7,30.0516]
[1747753574315,4.04737165,2470.8,2470.0,0.55]
[1747753574612,4.04841909,2470.1,2470.0,0.55]
[1747753574807,4.04841909,2470.1,2470.0,16.933249]
[1747753575308,4.04841909,2470.1,2470.0,24.807249]
[1747753575490,4.04841909,2470.1,2470.0,28.2821399]
[1747753575805,4.0482736,2470.2,2470.0,28.2821399]
[1747753576010,4.0482736,2470.2,2470.1,16.933249]
[1747753576788,4.0482736,2470.2,2470.1,7.721865]
[1747753577796,4.0482736,2470.2,2470.1,8.271865]
[1747753577995,4.0482736,2470.2,2470.1,11.22810659]
[1747753578201,4.0482736,2470.2,2470.1,16.144865]
[1747753578921,4.04818925,2470.3,2470.2,0.55]
[1747753579127,4.04661702,2471.2,2470.4,0.55]
[1747753579325,4.0475724,2470.7,2470.4,0.55]
[1747753579617,4.0475724,2470.7,2470.6,0.55]
[1747753579819,4.0475724,2470.7,2470.6,27.5913249]
[1747753580227,4.0475724,2470.7,2470.6,41.7998409]
[1747753580402,4.0475724,2470.7,2470.6,41.7498409]
[1747753580602,4.0475724,2470.7,2470.6,25.348]
[1747753580804,4.0475724,2470.7,2470.6,29.646065]
[1747753581015,4.0475724,2470.7,2470.6,25.348]
[1747753581312,4.0475724,2470.7,2470.6,28.0292]
[1747753582536,4.0475724,2470.7,2470.6,28.5792]
[1747753582718,4.0475724,2470.7,2470.6,31.43712]
[1747753584095,4.04720994,2470.9,2470.7,0.55]
[1747753584323,4.04720994,2470.9,2470.8,13.783001]
[1747753584630,4.04720994,2470.9,2470.8,13.724147]
[1747753584836,4.04720994,2470.9,2470.8,17.62650988]
[1747753585932,4.04720994,2470.9,2470.8,17.07650988]
[1747753586121,4.04720994,2470.9,2470.8,9.43879288]
[1747753587129,4.04720994,2470.9,2470.8,17.30979288]
[1747753587326,4.04682921,2471.1,2470.9,0.55]
[1747753587641,4.04682921,2471.1,2471.0,18.95772829]
[1747753588371,4.04682921,2471.1,2471.0,12.30232629]
[1747753588505,4.04682921,2471.1,2471.0,10.43572629]
[1747753588705,4.04682921,2471.1,2471.0,18.30572629]
[1747753589106,4.04682921,2471.1,2471.0,17.22653529]
[1747753589534,4.04682921,2471.1,2471.0,15.440556]
[1747753591344,4.04547109,2471.9,2471.1,0.55]
[1747753591547,4.04661702,2471.2,2471.1,0.55]
[1747753591748,4.04661702,2471.2,2471.1,16.933249]
[1747753592074,4.04645763,2471.3,2471.1,20.6990239]
[1747753592257,4.04645763,2471.3,2471.2,16.383249]
[1747753592410,4.04636114,2471.4,2471.3,0.55]
[1747753592612,4.04636114,2471.4,2471.3,14.943851]